bitfinex-derivatives/quotes_SOLF0:USTF0_20250309
["timestamp","ask_amount","ask_price","bid_price","bid_amount"]
[1741515012506,0.047755,137.66,137.63,0.04684754]
[1741515012703,0.047755,137.66,137.63,28.68684754]
[1741515012902,0.047755,137.66,137.65,7.2661]
[1741515013104,1.9799,137.73,137.63,28.68684754]
[1741515013308,30.5999,137.73,137.63,28.64]
[1741515013508,37.8618,137.73,137.63,28.64]
[1741515014214,13.15,137.72,137.68,7.2642]
[1741515014514,13.15,137.72,137.63,28.64]
[1741515014515,0.05581372,137.69,137.67,0.04917878]
[1741515014817,0.05581372,137.69,137.68,7.2645]
[1741515015012,13.15,137.72,137.68,7.2645]
[1741515015412,13.15,137.72,137.7,7.2633]
[1741515015614,13.15,137.72,137.67,28.64917878]
[1741515016211,0.05395249,137.71,137.68,1.9006]
[1741515016412,13.15,137.72,137.68,1.9006]
[1741515016816,13.15,137.72,137.69,7.2636]
[1741515017117,13.15,137.72,137.68,1.9006]
[1741515017715,0.05336252,137.71,137.68,1.9006]
[1741515018818,0.05336252,137.71,137.69,7.2635]
[1741515019210,0.05336252,137.71,137.67,0.04917878]
[1741515019616,7.2635,137.7,137.67,0.04917878]
[1741515019917,0.05336252,137.71,137.67,0.04917878]
[1741515020721,0.05336252,137.71,137.67,7.31397878]
[1741515020919,0.05336252,137.71,137.67,0.04917878]
[1741515024021,7.31636252,137.71,137.67,0.04917878]
[1741515024415,7.2643,137.69,137.67,0.04917878]
[1741515024617,0.05336252,137.71,137.67,0.04917878]
[1741515025513,7.2635,137.7,137.67,0.04917878]
[1741515025721,0.05336252,137.71,137.67,0.04917878]
[1741515026712,7.31636252,137.71,137.67,0.04917878]
[1741515026920,0.05336252,137.71,137.67,0.04917878]
[1741515028018,5.74624759,137.7,137.67,0.04917878]
[1741515028220,7.2645,137.68,137.67,0.04917878]
[1741515028416,5.74624759,137.68,137.6,32.4298]
[1741515028617,5.74624759,137.68,137.6,6.0309]
[1741515028919,7.2661,137.65,137.58,28.4]
[1741515029116,5.74624759,137.68,137.58,28.4]
[1741515029321,5.74624759,137.68,137.55,6.0143]
[1741515029322,7.2673,137.63,137.57,28.4]
[1741515029524,7.2673,137.63,137.62,0.05026713]
[1741515029824,0.05129275,137.64,137.61,0.04779596]
[1741515030526,0.05129275,137.64,137.62,7.2673]
[1741515030718,0.05129275,137.64,137.61,0.04779596]
[1741515031122,0.05129275,137.64,137.61,7.31549596]
[1741515031322,0.05129275,137.64,137.61,0.04779596]
[1741515032130,0.05129275,137.64,137.61,7.31579596]
[1741515032327,0.05129275,137.64,137.61,0.04779596]
[1741515032526,5.7839896,137.63,137.61,28.40779596]
[1741515033128,5.7839896,137.63,137.62,7.2676]
[1741515033331,0.05129275,137.64,137.61,28.40779596]
[1741515033629,0.05129275,137.64,137.63,7.2671]
[1741515034129,5.84475649,137.64,137.63,7.2671]
[1741515034333,2.74035649,137.64,137.63,7.2671]
[1741515034534,35.6236,137.7,137.62,3.898]
[1741515034833,28.36,137.7,137.65,7.2657]
[1741515035026,258.714,137.72,137.62,5.8633]
[1741515035227,28.3,137.71,137.65,7.2661]
[1741515035533,0.04751189,137.68,137.66,0.04592315]
[1741515039133,7.31221189,137.68,137.66,0.04592315]
[1741515039437,0.04751189,137.68,137.66,0.04592315]
[1741515039635,0.04751189,137.68,137.67,7.265]
[1741515041327,5.76607788,137.68,137.66,7.31122315]
[1741515041633,5.76607788,137.68,137.66,0.04592315]
[1741515041634,5.71909737,137.67,137.66,0.04592315]
[1741515041937,0.04751189,137.68,137.66,0.04592315]
[1741515042440,0.04751189,137.68,137.67,7.265]
[1741515042630,5.7670786,137.68,137.67,7.265]
[1741515044142,5.77649725,137.68,137.67,7.265]
[1741515044640,0.04751189,137.68,137.67,7.265]
[1741515044840,5.77647638,137.68,137.66,7.31142315]
[1741515045037,0.04751189,137.68,137.66,0.04592315]
[1741515045436,13.28751189,137.68,137.66,0.04592315]
[1741515045738,13.28751189,137.68,137.67,7.265]
[1741515046138,19.01680998,137.68,137.67,7.265]
[1741515046337,13.28751189,137.68,137.67,7.265]
[1741515047141,19.08730522,137.68,137.67,7.265]
[1741515047342,13.28751189,137.68,137.67,7.265]
[1741515049242,19.09119214,137.68,137.67,7.265]
[1741515049447,24.82568437,137.68,137.66,7.31132315]
[1741515049641,19.09119214,137.68,137.66,7.31132315]
[1741515049838,13.28751189,137.68,137.66,0.04592315]
[1741515050145,13.28751189,137.68,137.67,7.265]
[1741515052848,1.189e-05,137.68,137.67,7.265]
[1741515055054,5.74006016,137.68,137.67,7.265]
[1741515055550,11.55291382,137.68,137.67,7.265]
[1741515057047,3.065e-05,137.69,137.68,7.2645]
[1741515058249,3.065e-05,137.69,137.68,10.9045]
[1741515060950,3.065e-05,137.69,137.68,72.9045]
[1741515063952,111.15786818,137.86,137.68,261.4497]
[1741515064165,109.19236818,137.86,137.82,7.2569]
[1741515064355,109.19236818,137.86,137.79,27.86]
[1741515064859,7.2559,137.85,137.8,7.2578]
[1741515065154,0.05103165,137.84,137.81,0.04740971]
[1741515066258,0.05103165,137.84,137.83,7.2566]
[1741515067753,3.165e-05,137.84,137.83,35.1766]
[1741515067957,4.0313,137.93,137.83,27.92]
[1741515068968,0.05542253,137.89,137.87,0.05007254]
[1741515069663,0.05542253,137.89,137.88,7.2539]
[1741515071063,0.05542253,137.89,137.87,27.97007254]
[1741515071660,0.05542253,137.89,137.88,7.2539]
[1741515071860,27.92,137.97,137.87,27.97007254]
[1741515072054,5.57423166,137.96,137.87,27.92]
[1741515072261,5.57423166,137.95,137.87,27.92]
[1741515072563,11.22277947,137.94,137.87,27.92]
[1741515072763,5.64854781,137.94,137.87,27.92]
[1741515072964,7.2516,137.93,137.87,35.1743]
[1741515073166,0.05037688,137.92,137.89,0.05318263]
[1741515073665,7.2529,137.9,137.89,0.05318263]
[1741515074463,11.1902,137.91,137.89,0.05318263]
[1741515074859,7.2546,137.87,137.82,7.2569]
[1741515075167,27.9,137.88,137.8,1.9034]
[1741515075670,35.1541,137.88,137.8,1.9034]
[1741515076071,0.05109406,137.85,137.83,0.0520028]
[1741515076265,0.05109406,137.85,137.84,7.256]
[1741515076465,31.7977,137.91,137.83,0.0520028]
[1741515076665,31.7977,137.91,137.83,1.9812028]
[1741515076867,7.253,137.9,137.83,1.9812028]
[1741515077271,1.9627,137.91,137.88,7.2538]
[1741515077464,1.9627,137.91,137.83,3.9821]
[1741515077661,2.00875909,137.91,137.88,0.04712495]
[1741515077863,0.04605909,137.91,137.88,0.04712495]
[1741515080063,0.04605909,137.91,137.88,7.30072495]
[1741515080261,0.04605909,137.91,137.88,0.04712495]
[1741515083477,0.04605909,137.91,137.89,7.253]
[1741515083678,0.04605909,137.91,137.88,0.04712495]
[1741515085869,0.04605909,137.91,137.89,7.2531]
[1741515087281,0.04605909,137.91,137.88,0.04712495]
[1741515087579,0.04605909,137.91,137.9,7.2529]
[1741515087977,0.04605909,137.91,137.89,7.2529]
[1741515088277,0.04605909,137.91,137.88,0.04712495]
[1741515088680,0.04605909,137.91,137.9,7.2529]
[1741515090280,0.04605909,137.91,137.88,0.04712495]
[1741515091880,27.64605909,137.91,137.88,0.04712495]
[1741515093081,27.64605909,137.91,137.89,7.2531]
[1741515094782,27.64605909,137.91,137.88,7.30082495]
[1741515094985,27.64605909,137.91,137.88,0.04712495]
[1741515096082,27.64605909,137.91,137.89,7.2534]
[1741515097377,27.64605909,137.91,137.9,7.2529]
[1741515098583,33.30244835,137.91,137.9,7.2529]
[1741515100185,5.70244835,137.91,137.9,7.2529]
[1741515100487,0.04605909,137.91,137.9,7.2529]
[1741515101285,0.04605909,137.91,137.89,7.2532]
[1741515101484,0.04605909,137.91,137.88,0.04712495]
[1741515101886,5.67443342,137.9,137.88,7.30102495]
[1741515102188,5.67443342,137.9,137.88,0.04712495]
[1741515102388,0.04605909,137.91,137.88,0.04712495]
[1741515102982,7.2533,137.9,137.88,0.04712495]
[1741515103289,5.68083292,137.89,137.88,0.04712495]
[1741515104584,12.93423292,137.89,137.88,0.04712495]
[1741515104782,5.68083292,137.89,137.88,0.04712495]
[1741515106291,5.68083292,137.89,137.82,27.44]
[1741515106883,5.68083292,137.88,137.81,1.9919]
[1741515107287,0.05278305,137.86,137.83,0.05424363]
[1741515108188,5.68083292,137.85,137.83,0.05424363]
[1741515108590,5.68083292,137.84,137.83,0.05424363]
[1741515108992,5.68083292,137.84,137.77,27.54]
[1741515109186,29.5783,137.83,137.78,7.2591]
[1741515109390,29.5783,137.83,137.76,1.8828]
[1741515109786,5.68083292,137.82,137.76,1.8828]
[1741515110088,0.05154056,137.8,137.78,0.05327422]
[1741515110490,27.52,137.86,137.78,27.59327422]
[1741515110695,27.54,137.87,137.78,27.54]
[1741515111191,5.70749256,137.86,137.83,7.2561]
[1741515111590,5.70749256,137.85,137.83,7.3021124]
[1741515111889,5.70749256,137.85,137.83,0.0460124]
[1741515112093,5.70749256,137.85,137.84,7.256]
[1741515112393,0.04766744,137.86,137.84,7.256]
[1741515112588,5.7086388,137.85,137.84,7.256]
[1741515112788,5.7086388,137.85,137.83,7.3025124]
[1741515112990,5.7086388,137.85,137.83,0.0460124]
[1741515113186,5.7086388,137.84,137.83,0.0460124]
[1741515113488,5.7086388,137.84,137.83,7.3026124]
[1741515117388,5.7086388,137.84,137.83,0.0460124]
[1741515120184,5.7086388,137.84,137.83,7.3026124]
[1741515121488,5.7086388,137.84,137.83,0.0460124]
[1741515121897,5.7086388,137.84,137.83,7.3026124]
[1741515123296,5.7086388,137.84,137.83,0.0460124]
[1741515123901,5.7086388,137.84,137.83,7.3026124]
[1741515125803,5.7086388,137.84,137.83,0.0460124]
[1741515128297,5.7086388,137.84,137.79,7.2586]
[1741515128497,27.28,137.83,137.76,1.8828]
[1741515129006,7.2578,137.81,137.77,7.2595]
[1741515129209,32.9886388,137.82,137.72,27.3]
[1741515129499,0.05510103,137.78,137.76,0.05401606]
[1741515129701,27.37510103,137.78,137.76,0.05401606]
[1741515130097,7.2597,137.77,137.76,0.05401606]
[1741515130302,7.2597,137.77,137.7,29.3562]
[1741515131008,27.32,137.78,137.7,29.3562]
[1741515131201,27.3,137.79,137.7,29.3562]
[1741515131406,27.3,137.79,137.76,7.2599]
[1741515131805,27.34853518,137.79,137.76,7.30695496]
[1741515132809,5.7086388,137.78,137.76,0.04705496]
[1741515133210,27.34853518,137.79,137.76,0.04705496]
[1741515133612,7.2597,137.77,137.76,0.04705496]
[1741515133811,7.2597,137.77,137.69,1.9043]
[1741515134012,27.28,137.76,137.69,1.9043]
[1741515134199,27.28,137.76,137.72,7.2623]
[1741515134404,27.28,137.76,137.69,1.9043]
[1741515134606,5.68530826,137.75,137.69,1.9043]
[1741515134904,0.04890075,137.73,137.71,0.05245774]
[1741515137313,0.04890075,137.73,137.72,7.2624]
[1741515137512,0.04890075,137.73,137.71,0.05245774]
[1741515137909,0.04890075,137.73,137.71,7.31515774]
[1741515138407,7.31080075,137.73,137.71,0.05245774]
[1741515138608,27.24,137.72,137.65,1.8964]
[1741515139008,34.5024,137.72,137.68,7.2645]
[1741515139207,27.24,137.72,137.65,1.8964]
[1741515139609,27.24,137.72,137.69,7.2635]
[1741515139803,27.24,137.72,137.67,0.05251451]
[1741515139804,0.04882378,137.7,137.67,0.05251451]
[1741515140813,0.04882378,137.7,137.69,7.2639]
[1741515140814,2.378e-05,137.7,137.69,7.2639]
[1741515141415,2.378e-05,137.7,137.69,69.2639]
[1741515142013,2.378e-05,137.7,137.69,7.2639]
[1741515151918,2.378e-05,137.7,137.67,0.05251451]
[1741515152423,2.378e-05,137.7,137.69,7.2639]
[1741515154119,2.378e-05,137.7,137.68,7.2643]
[1741515154422,2.378e-05,137.7,137.67,0.05251451]
[1741515155126,2.378e-05,137.7,137.69,7.2639]
[1741515155515,2.378e-05,137.7,137.69,13.073]
[1741515157426,2.378e-05,137.7,137.69,9.2305]
[1741515157622,2.378e-05,137.7,137.69,12.8705]
[1741515157821,2.378e-05,137.7,137.69,18.04686537]
[1741515160930,2.378e-05,137.7,137.69,80.0468597]
[1741515161633,2.378e-05,137.7,137.69,76.4068597]
[1741515161930,2.378e-05,137.7,137.69,102.553]
[1741515164232,2.378e-05,137.7,137.69,13.073]
[1741515164631,2.378e-05,137.7,137.69,7.2639]
[1741515164832,2.378e-05,137.7,137.68,7.2643]
[1741515165031,2.378e-05,137.7,137.67,0.05251451]
[1741515165237,27.50002378,137.7,137.67,0.05251451]
[1741515165436,27.50002378,137.7,137.61,30.12404415]
[1741515165437,1.9603,137.69,137.64,7.2665]
[1741515166030,1.9603,137.69,137.65,7.2659]
[1741515166633,0.05532121,137.68,137.66,0.04735234]
[1741515166931,0.05532121,137.68,137.61,30.12404415]
[1741515167929,0.05532121,137.68,137.58,3.9884]
[1741515168126,1.9603,137.69,137.63,0.05210038]
[1741515168328,0.0489036,137.64,137.63,0.05210038]
[1741515168537,27.52,137.64,137.63,0.05210038]
[1741515170545,27.52,137.64,137.63,7.31920038]
[1741515172144,27.4944656,137.65,137.64,7.2666]
[1741515172340,27.4944656,137.65,137.63,0.05210038]
[1741515174446,0.0544656,137.65,137.63,0.05210038]
[1741515176146,3.3744656,137.65,137.63,0.05210038]
[1741515176343,0.0544656,137.65,137.63,0.05210038]
[1741515177849,0.0544656,137.65,137.63,7.31900038]
[1741515179353,0.0544656,137.65,137.63,0.05210038]
[1741515179952,1.9697656,137.65,137.56,2.0506]
[1741515180148,3.8186,137.65,137.56,2.0506]
[1741515180755,11.23200285,137.64,137.6,7.2686]
[1741515181055,27.38594829,137.63,137.53,62.0]
[1741515181252,27.38594829,137.63,137.57,7.2699]
[1741515181459,5.58088527,137.62,137.48,3.8808]
[1741515181648,27.34,137.63,137.49,3.19998084]
[1741515181846,5.62525919,137.62,137.56,7.2705]
[1741515182054,12.91169316,137.61,137.56,7.2705]
[1741515182256,0.05437032,137.6,137.58,0.05202636]
[1741515182460,27.42,137.59,137.49,1.8642]
[1741515182654,1.9153,137.58,137.49,1.8642]
[1741515183350,5.2353,137.58,137.49,1.8642]
[1741515183556,0.05589444,137.55,137.52,7.32250383]
[1741515183759,27.47589444,137.55,137.52,0.04990383]
[1741515185250,27.47589444,137.55,137.43,166.8252]
[1741515185449,27.47589444,137.55,137.4,81.61969394]
[1741515185450,27.42,137.55,137.47,7.2751]
[1741515185648,27.42,137.55,137.44,1.9204]
[1741515185953,7.2733,137.52,137.46,7.2757]
[1741515186257,1.9067,137.57,137.42,4.0374]
[1741515186258,27.44,137.51,137.42,4.0374]
[1741515186458,0.04798815,137.5,137.48,0.04666278]
[1741515186660,1.95468815,137.5,137.39,1.9204]
[1741515186853,7.2759,137.47,137.42,7.2779]
[1741515187058,27.46,137.46,137.39,1.9204]
[1741515187353,1.9067,137.5,137.39,62.0]
[1741515187659,27.52,137.47,137.39,62.0]
[1741515187859,0.05306661,137.46,137.39,62.0]
[1741515188056,0.05306661,137.46,137.36,110.56049429]
[1741515188262,27.52,137.47,137.37,29.6533]
[1741515188460,27.52,137.47,137.45,7.2762]
[1741515188758,9.427e-05,137.43,137.41,27.62]
[1741515188954,29.5267,137.5,137.47,7.2755]
[1741515189261,31.5254,137.51,137.41,27.62]
[1741515189454,31.5254,137.51,137.49,7.2741]
[1741515189653,31.5254,137.51,137.45,27.64]
[1741515189654,1.8837,137.51,137.45,27.64]
[1741515189855,27.64,137.54,137.45,27.64]
[1741515190157,0.05149382,137.49,137.48,7.275]
[1741515190458,27.64,137.54,137.47,0.04997736]
[1741515190655,0.05060306,137.5,137.47,0.04997736]
[1741515191164,3.06e-06,137.5,137.47,0.04997736]
[1741515191460,3.06e-06,137.5,137.49,7.2745]
[1741515191658,3.06e-06,137.5,137.49,34.9145]
[1741515194559,3.06e-06,137.5,137.49,96.9145]
[1741515194762,3.06e-06,137.5,137.49,34.9145]
[1741515197762,3.06e-06,137.5,137.49,96.9145]
[1741515198365,3.06e-06,137.5,137.49,98.7996]
[1741515198564,3.06e-06,137.5,137.49,102.4396]
[1741515200473,3.06e-06,137.5,137.49,103.77550281]
[1741515200966,3.06e-06,137.5,137.49,103.77547438]
[1741515202866,3.06e-06,137.5,137.49,103.77538919]
[1741515203375,3.06e-06,137.5,137.49,270.60058919]
[1741515203765,3.32,137.58,137.49,270.60058919]
[1741515203766,3.06e-06,137.58,137.49,281.45608919]
[1741515203964,3.06e-06,137.58,137.57,7.2703]
[1741515204170,3.06e-06,137.58,137.57,34.8303]
[1741515205169,27.54,137.67,137.64,7.2666]
[1741515205368,6.0677,137.71,137.54,170.6613]
[1741515205566,27.56,137.7,137.55,28.89515178]
[1741515205772,27.56,137.7,137.56,1.33515178]
[1741515205968,5.84282955,137.69,137.56,3.33405178]
[1741515206172,5.84282955,137.69,137.61,7.268]
[1741515206475,0.05407085,137.64,137.61,34.88075093]
[1741515206674,0.05407085,137.64,137.61,27.61275093]
[1741515206873,5.84282955,137.68,137.61,27.56]
[1741515207069,0.04580355,137.64,137.61,27.60834647]
[1741515207276,0.04580355,137.64,137.63,7.2671]
[1741515207578,33.6477,137.71,137.62,2.0508]
[1741515207781,2.0012,137.71,137.62,2.0508]
[1741515208180,5.85305018,137.7,137.62,2.0508]
[1741515208376,5.85305018,137.7,137.67,7.2648]
[1741515208585,0.04691732,137.67,137.65,0.05435188]
[1741515208876,2.0012,137.71,137.65,0.05435188]
[1741515209082,0.0459504,137.67,137.65,0.05435188]
[1741515210581,0.0459504,137.67,137.66,7.2655]
[1741515211878,0.0459504,137.67,137.65,0.05435188]
[1741515212689,0.0459504,137.67,137.65,7.32035188]
[1741515213182,0.0459504,137.67,137.66,7.2655]
[1741515218089,0.0459504,137.67,137.65,7.31995188]
[1741515218688,0.0459504,137.67,137.65,0.05435188]
[1741515218984,0.0459504,137.67,137.66,7.2655]
[1741515224394,0.0459504,137.67,137.65,0.05435188]
[1741515224793,0.0459504,137.67,137.65,7.31995188]
[1741515224995,0.0459504,137.67,137.65,0.05435188]
[1741515226399,0.0459504,137.67,137.66,7.2655]
[1741515227294,5.04e-05,137.68,137.66,27.44]
[1741515227502,5.04e-05,137.68,137.67,7.265]
[1741515232703,5.04e-05,137.68,137.66,27.44]
[1741515232897,5.04e-05,137.68,137.65,0.05435188]
[1741515233606,5.04e-05,137.68,137.67,7.265]
[1741515241609,0.04971843,137.69,137.67,7.265]
[1741515242213,0.04971843,137.69,137.68,7.2645]
[1741515242614,5.92409494,137.69,137.68,7.2645]
[1741515245817,5.92409494,137.69,137.66,29.1445]
[1741515245818,1.9384,137.74,137.73,7.2618]
[1741515246017,7.53577763,137.74,137.73,7.2618]
[1741515246412,5.59737763,137.74,137.73,7.2618]
[1741515246817,5.59737763,137.74,137.72,0.05270409]
[1741515247017,5.60207112,137.73,137.72,0.05270409]
[1741515248221,1.94018294,137.75,137.72,0.05270409]
[1741515248421,5.60650574,137.74,137.72,7.31470409]
[1741515248619,5.60650574,137.73,137.72,7.31470409]
[1741515248814,5.60650574,137.73,137.72,0.05270409]
[1741515251218,5.60650574,137.73,137.72,7.31510409]
[1741515252222,5.61694272,137.73,137.72,7.31510409]
[1741515252921,5.61694272,137.73,137.72,0.05270409]
[1741515256825,5.61694272,137.73,137.72,7.31510409]
[1741515257829,11.45376255,137.73,137.72,7.31510409]
[1741515260222,11.45105716,137.73,137.72,7.31510409]
[1741515261034,11.45105716,137.73,137.72,0.05270409]
[1741515261439,11.45105716,137.73,137.72,7.31510409]
[1741515262633,11.45105716,137.73,137.72,0.05270409]
[1741515264838,11.45105716,137.73,137.72,7.31510409]
[1741515267935,5.83681983,137.73,137.72,7.31510409]
[1741515268135,11.4532649,137.73,137.72,7.31510409]
[1741515268931,11.4532649,137.73,137.72,0.05270409]
[1741515272440,11.4532649,137.73,137.72,7.31510409]
[1741515273134,11.4532649,137.73,137.72,0.05270409]
[1741515274541,11.4532649,137.73,137.72,7.31510409]
[1741515275437,11.4532649,137.73,137.72,0.05270409]
[1741515275838,11.46201845,137.73,137.72,0.05270409]
[1741515280434,11.46201845,137.73,137.72,7.31510409]
[1741515281637,11.46341691,137.73,137.72,7.31510409]
[1741515283538,5.83681983,137.73,137.72,7.31510409]
[1741515283739,0.05358294,137.75,137.74,7.2613]
[1741515283939,5.6805606,137.75,137.74,7.2613]
[1741515284239,11.46272177,137.75,137.74,7.2613]
[1741515284637,11.46272177,137.75,137.72,0.05270409]
[1741515284845,5.62697766,137.74,137.72,0.05270409]
[1741515285045,11.40913883,137.73,137.72,0.05270409]
[1741515285341,11.40913883,137.73,137.72,7.31500409]
[1741515286041,5.78216117,137.73,137.72,7.31500409]
[1741515288742,11.40810335,137.73,137.72,0.05270409]
[1741515291449,11.40621802,137.73,137.72,0.05270409]
[1741515295452,11.40554386,137.73,137.72,0.05270409]
[1741515297551,18.66734386,137.73,137.72,0.05270409]
[1741515298651,18.66734386,137.73,137.67,26.72]
[1741515298652,11.40554386,137.73,137.67,26.72]
[1741515298848,7.2632,137.71,137.68,7.2642]
[1741515299056,5.62338269,137.7,137.68,7.2642]
[1741515299249,5.62338269,137.69,137.68,7.2642]
[1741515299455,5.6220507,137.69,137.68,7.2642]
[1741515299855,11.40421187,137.69,137.68,7.2642]
[1741515300260,11.40421187,137.69,137.67,0.04866684]
[1741515300556,5.6220507,137.68,137.67,7.31336684]
[1741515300956,11.40421187,137.68,137.67,0.04866684]
[1741515301855,11.40175651,137.68,137.67,0.04866684]
[1741515302554,45.38625651,137.68,137.62,3.905]
[1741515302755,5.61959534,137.67,137.62,3.905]
[1741515302953,5.61959534,137.66,137.62,3.905]
[1741515303154,5.61959534,137.65,137.62,3.905]
[1741515303354,5.78216117,137.67,137.62,3.905]
[1741515303555,18.66061049,137.66,137.62,2.03]
[1741515303862,5.61264932,137.65,137.63,0.05204385]
[1741515304061,5.78216117,137.64,137.63,0.05204385]
[1741515304562,5.60799243,137.64,137.63,0.05204385]
[1741515304754,11.37156695,137.64,137.63,0.05204385]
[1741515305558,11.37156695,137.64,137.63,7.31914385]
[1741515305757,5.76357452,137.64,137.63,7.31914385]
[1741515306561,26.72,137.65,137.63,7.31914385]
[1741515306862,5.75930505,137.64,137.63,7.31914385]
[1741515307956,0.05126034,137.66,137.65,7.2661]
[1741515308162,26.72,137.72,137.63,26.77204385]
[1741515308363,5.6041461,137.71,137.63,26.72]
[1741515308558,5.6041461,137.7,137.64,1.8701]
[1741515308765,5.6041461,137.69,137.64,1.8701]
[1741515308963,5.75981506,137.71,137.64,1.8701]
[1741515309258,5.75981506,137.68,137.64,1.8701]
[1741515309466,0.05400494,137.69,137.66,0.04880253]
[1741515309665,0.05400494,137.69,137.68,7.2645]
[1741515309860,0.05400494,137.69,137.66,26.76880253]
[1741515310268,0.05400494,137.69,137.68,7.2645]
[1741515311063,5.81423723,137.69,137.68,7.2645]
[1741515311462,2.71073723,137.69,137.68,7.2645]
[1741515311661,28.5955,137.76,137.71,7.2624]
[1741515311867,5.60480393,137.75,137.66,26.72]
[1741515312062,5.60480393,137.74,137.7,7.2633]
[1741515312362,5.60480393,137.73,137.7,7.2633]
[1741515312562,5.60480393,137.72,137.66,26.72]
[1741515312769,5.60480393,137.71,137.7,0.04591217]
[1741515313067,5.6036396,137.71,137.7,0.04591217]
[1741515313769,9.2436396,137.71,137.61,406.5452]
[1741515313964,36.2320396,137.7,137.61,26.72]
[1741515314162,7.2649,137.68,137.63,7.2669]
[1741515314368,5.6036396,137.67,137.61,26.72]
[1741515314570,26.72,137.69,137.61,26.72]
[1741515314863,5.60187764,137.68,137.61,26.72]
[1741515315069,0.04796549,137.66,137.65,7.2661]
[1741515315458,33.9817,137.74,137.65,26.72]
[1741515315666,5.60156998,137.73,137.65,26.72]
[1741515315967,5.60156998,137.72,137.65,26.72]
[1741515316168,5.60156998,137.71,137.69,7.2636]
[1741515316370,26.72,137.74,137.69,7.2636]
[1741515316570,0.0476185,137.71,137.69,0.05426662]
[1741515316772,5.60105419,137.7,137.69,0.05426662]
[1741515317372,26.7676185,137.71,137.69,0.05426662]
[1741515317573,5.60123207,137.7,137.69,0.05426662]
[1741515319376,5.60123207,137.7,137.69,7.31816662]
[1741515319570,5.60123207,137.7,137.69,0.05426662]
[1741515319973,26.7676185,137.71,137.69,7.31776662]
[1741515320174,5.60075088,137.7,137.69,7.31776662]
[1741515320474,0.0476185,137.71,137.69,7.31776662]
[1741515322164,0.0476185,137.71,137.69,0.05426662]
[1741515322368,0.0476185,137.71,137.7,7.2634]
[1741515322570,5.64902821,137.71,137.7,7.2634]
[1741515323173,5.64902821,137.71,137.69,0.05426662]
[1741515323367,0.0476185,137.71,137.69,0.05426662]
[1741515323867,5.71906041,137.7,137.69,0.05426662]
[1741515324270,5.71906041,137.7,137.69,7.31816662]
[1741515324878,0.0476185,137.71,137.7,7.2634]
[1741515326377,0.0476185,137.71,137.7,69.2634]
[1741515327069,0.0476185,137.71,137.7,7.2634]
[1741515328480,0.0476185,137.71,137.69,0.05426662]
[1741515329672,5.57060393,137.7,137.69,0.05426662]
[1741515329879,0.0476185,137.71,137.69,0.05426662]
[1741515330280,0.0476185,137.71,137.7,7.2634]
[1741515332780,1.85e-05,137.71,137.7,7.2634]
[1741515335784,1.85e-05,137.71,137.7,10.9034]
[1741515336088,1.85e-05,137.71,137.7,16.6149]
[1741515337084,1.85e-05,137.71,137.7,12.9749]
[1741515338086,1.85e-05,137.71,137.7,16.6149]
[1741515340986,1.85e-05,137.71,137.7,78.6149]
[1741515341177,1.85e-05,137.71,137.7,79.94872775]
[1741515343190,1.85e-05,137.71,137.7,246.77392775]
[1741515344090,1.85e-05,137.71,137.7,246.77392595]
[1741515346982,1.85e-05,137.71,137.7,268.5001]
[1741515347581,1.85e-05,137.71,137.7,241.8001]
[1741515347785,1.85e-05,137.71,137.7,268.5001]
[1741515348489,1.85e-05,137.71,137.7,272.1401]
[1741515350187,1.85e-05,137.71,137.7,273.47394761]
[1741515350580,1.85e-05,137.71,137.7,269.83394761]
[1741515350782,1.85e-05,137.71,137.7,268.5001]
[1741515353693,1.85e-05,137.71,137.7,272.1401]
[1741515353895,1.85e-05,137.71,137.7,273.47391172]
[1741515354097,1.85e-05,137.71,137.7,267.91771172]
[1741515354395,1.85e-05,137.71,137.7,266.5839]
[1741515354590,1.85e-05,137.71,137.7,7.2634]
[1741515354798,1.85e-05,137.71,137.69,7.31796662]
[1741515354992,1.85e-05,137.71,137.69,0.05426662]
[1741515355388,1.85e-05,137.71,137.7,7.2634]
[1741515357796,1.85e-05,137.71,137.7,33.9634]
[1741515358396,1.85e-05,137.71,137.7,41.676]
[1741515358905,1.85e-05,137.71,137.7,282.60985026]
[1741515361302,1.85e-05,137.71,137.7,344.60985026]
[1741515362510,1.85e-05,137.71,137.7,69.2634]
[1741515362905,1.85e-05,137.71,137.7,72.9034]
[1741515363104,1.85e-05,137.71,137.7,74.2371891]
[1741515363499,1.85e-05,137.71,137.7,70.5971891]
[1741515363711,1.85e-05,137.71,137.7,69.2634]
[1741515368717,1.85e-05,137.71,137.69,26.75426662]